Cogmind - Beta 14 @@@ ROGUE MODE // 2024.08.20 @ 09:32:41 Player: Surreal Result: Self-destructed Performance ------------- Evolutions (1) 500 Regions Visited (3) 600 Robots Destroyed (12) 60 Value Destroyed (300) 300 Prototype IDs (1) 20 Alien Tech Used (0) 0 Bonus (0) 0 TOTAL SCORE: 1480 Bonus ------- None Cogmind --------- Core Integrity 232/400 Matter 238/300 Energy 81/100 System Corruption 0% Temperature Critical (597) Movement Rolling (90) Location -9/Storage Parts ------- > --- POWER (1) -------- (None) > --- PROPULSION (3) --- Armored Wheel > --- UTILITY (3) ------ Small Storage Unit > --- WEAPON (2) ------- Advanced Beam Cannon > --- INVENTORY (8) ---- Light Ion Engine Flight Unit Flight Unit Flight Unit Flight Unit Flight Unit Beam Rifle Peak State ------------ > --- POWER ------------ Light Ion Engine > --- PROPULSION ------- Wheel Armored Wheel Armored Wheel > --- UTILITY ---------- Small Storage Unit > --- WEAPON ----------- Particle Gun Advanced Beam Cannon > --- INVENTORY -------- Light Ion Engine Armored Wheel Flight Unit Flight Unit Flight Unit Flight Unit Flight Unit Beam Rifle [Rating: 13] Favorites ----------- Power Light Ion Engine Engine Light Ion Engine Propulsion Armored Wheel Wheel Armored Wheel Flight Unit Flight Unit Utility Structural Scanner Device Structural Scanner Storage Small Storage Unit Processor Improved Targeting Computer Weapon Particle Gun Energy Gun Particle Gun Energy Cannon Advanced Beam Cannon Build | -11 -10 -9 -9 ------- Run | Yrd Mat Mat Sto Slots Evolved 2 | . . 2 . Power . | . . . . Propulsion 1 | . . 1 . Utility 1 | . . 1 . Weapon . | . . . . Parts Attached 36 | 7 16 6 7 Power 5 | 3 . . 2 Engine 5 | 3 . . 2 Core . | . . . . Reactor . | . . . . Propulsion 15 | 3 4 4 4 Treads . | . . . . Leg . | . . . . Wheel 12 | 3 4 1 4 Hover . | . . . . Flight 3 | . . 3 . Utility 10 | 1 8 1 . Device 3 | . 3 . . Storage 6 | 1 4 1 . Processor 1 | . 1 . . Hackware . | . . . . Protection . | . . . . Artifact . | . . . . Weapon 6 | . 4 1 1 Energy Gun 5 | . 4 1 . Energy Cannon 1 | . . . 1 Ballistic Gun . | . . . . Ballistic Cannon . | . . . . Launcher . | . . . . Special Weapon . | . . . . Impact Weapon . | . . . . Slashing Weapon . | . . . . Piercing Weapon . | . . . . Special Melee Weapon . | . . . . Unidentified Prototypes 1 | . . . 1 Parts Lost 11 | . 4 1 6 Power 2 | . 1 . 1 Propulsion 4 | . 2 . 2 Utility 2 | . . . 2 Weapon 3 | . 1 1 1 Highest Loss Streak 4 | . 3 1 4 To Critical Strikes . | . . . . Average Slot Usage (%) 77 | . 78 80 74 Engine 1 | . 3 . 1 Wheel 20 | . 25 13 21 Flight 4 | . . 11 2 Device 18 | . 17 22 16 Storage 9 | . 5 11 11 Energy Gun 17 | . 23 21 11 Energy Cannon 4 | . . . 10 Peak Build Rating 13 | 2 9 11 13 Average Rating 9 | . 6 9 11 On Entrance 4 | . 1 7 8 Naked Turns . | . . . . Heaviest Build 15 | 3 12 11 15 Greatest Support 36 | 16 32 24 36 Greatest Overweight (x) 2 | . 2 . . Average Overweight (x) . | . . . . Largest Inventory Capacity 20 | 8 20 8 8 Average Capacity 7 | 5 6 7 8 Most Carried 8 | 5 5 5 8 Average Carried 2 | 2 1 1 3 Final Capacity 8 | 5 5 8 8 Final Carried 7 | 5 1 3 7 Class Distribution -------------------- 100% | Mutant Dominant Class ---------------- Mutant | -10/Materials Mutant | -9/Materials Mutant | -9/Storage Resources | -11 -10 -9 -9 ----------- Run | Yrd Mat Mat Sto Matter Collected 443 | 234 175 . 34 Remotely . | . . . . Salvage Created 408 | . 176 . 232 Parts 21 | . 7 . 14 Haulers Intercepted . | . . . . Recyclers Shooed . | . . . . Parts Field Recycled . | . . . . Retrieved Matter . | . . . . Parts Self-Destructed . | . . . . Prevented . | . . . . Kills | -11 -10 -9 -9 ------- Run | Yrd Mat Mat Sto Combat Hostiles Destroyed 9 | . 3 . 6 Guns 5 | . 2 . 3 Cannons 3 | . . . 3 Classes Destroyed 5 | . 2 . 3 Worker 2 | . . . 2 Watcher 1 | . 1 . . Swarmer 3 | . . . 3 Grunt 4 | . 3 . 1 Sentry 2 | . . . 2 Best Kill Streak 4 | . 2 . 4 Combat Bots Only 3 | . 2 . 3 Max Kills in Single Turn 2 | . 1 . 2 Gunslinging . | . . . . Exploded . | . . . . Melee . | . . . . Uniques/NPCs Destroyed . | . . . . Combat | -11 -10 -9 -9 -------- Run | Yrd Mat Mat Sto Hostile Shots Fired 131 | . 52 16 63 Missed 37 | . 12 9 16 Damage Taken 1092 | . 516 99 477 Core 321 | . 153 40 128 Absorbed by Shields . | . . . . Core Remaining (%) 69 | 100 38 . . Volleys Fired 42 | . 14 5 23 Largest 2 | . 2 2 2 Hottest 133 | . 90 105 133 Shots Fired 78 | . 28 9 41 Gun 57 | . 28 9 20 Cannon 21 | . . . 21 Launcher . | . . . . Special . | . . . . Kinetic . | . . . . Thermal 78 | . 28 9 41 Explosive . | . . . . Electromagnetic . | . . . . Robot Hit Streak 12 | . 11 12 8 Robot Miss Streak 7 | . 3 3 7 Penetration Max . | . . . . Secondary Targets . | . . . . Shots Hit Robots 49 | . 22 5 22 Core Hits 19 | . 8 1 10 Critical Kills . | . . . . Critical Parts Destroyed . | . . . . Critical Strikes 1 | . 1 . . Burn 1 | . 1 . . Melee Attacks . | . . . . Impact . | . . . . Slashing . | . . . . Piercing . | . . . . Sneak Attacks . | . . . . Combat Hostiles . | . . . . Follow-up Attacks . | . . . . Damage Inflicted 793 | . 269 61 463 Guns 530 | . 269 61 200 Cannons 263 | . . . 263 Explosions . | . . . . Melee . | . . . . Ramming . | . . . . Kinetic . | . . . . Thermal 793 | . 269 61 463 Explosive . | . . . . Electromagnetic . | . . . . Impact . | . . . . Slashing . | . . . . Piercing . | . . . . Highest Corruption . | . . . . Average Corruption . | . . . . Corruption Purged . | . . . . Corruption Blocked . | . . . . Overload Shots . | . . . . Overflow Damage . | . . . . Projectiles . | . . . . Explosions . | . . . . Melee . | . . . . Knockbacks . | . . . . Impact . | . . . . Kinetic . | . . . . Secondary . | . . . . Self-Inflicted Damage . | . . . . Shots . | . . . . Rammed . | . . . . Targets Rammed . | . . . . Kicked . | . . . . Crushed . | . . . . Highest Temperature 588 | . 362 150 588 Average Temperature 169 | . 169 75 196 Received Heat Transfer 453 | . 285 45 123 Effects 5 | . . . 5 Shutdowns 1 | . . . 1 Interference 1 | . . . 1 Short Circuit 1 | . . . 1 Damage (minor) 2 | . . . 2 Siege Activations . | . . . . Robots Corrupted . | . . . . Combat Hostiles . | . . . . Parts Fried . | . . . . Impact Corruptions . | . . . . Robots Melted 1 | . 1 . . Combat Hostiles 1 | . 1 . . Parts Melted 4 | . . . 4 Heat Transferred 1892 | . 781 149 962 Parts Sabotaged . | . . . . Parts Stolen . | . . . . Parts Stripped . | . . . . Power Chain Reactions . | . . . . Alert | -11 -10 -9 -9 ------- Run | Yrd Mat Mat Sto Peak Influence 217 | . 117 79 217 Initial 44 | . . 44 33 Average 46 | . 43 51 49 Maximum Alert Level 1 | . . . 1 Low Security (%) 98 | 100 100 100 97 Level 1 1 | . . . 2 Level 2 . | . . . . Level 3 . | . . . . Level 4 . | . . . . Level 5 . | . . . . High Security . | . . . . Max Security . | . . . . Squads Dispatched 1 | . . . 1 Investigation . | . . . . Extermination . | . . . . Reinforcement 1 | . . . 1 Assault . | . . . . Garrison . | . . . . Intercept . | . . . . Searches Triggered . | . . . . Construction Impeded . | . . . . Haulers Reinforced . | . . . . Active Scanning Responses . | . . . . Cargo Convoy Interrupts . | . . . . Stealth | -11 -10 -9 -9 --------- Run | Yrd Mat Mat Sto Distress Signals 1 | . 1 . . Communications Jammed . | . . . . Distress Signals . | . . . . Times Spotted 29 | . 12 7 10 Peak Tracking Total 7 | . 5 7 5 Tactical Retreats 1 | . . . 1 Traps | -11 -10 -9 -9 ------- Run | Yrd Mat Mat Sto Traps Triggered 1 | . . 1 . Indirectly . | . . . . Trap Hack Attempts . | . . . . Triggered . | . . . . Disarmed . | . . . . Reprogrammed . | . . . . Reused . | . . . . Traps Extracted . | . . . . Installed . | . . . . Triggered . | . . . . Machines | -11 -10 -9 -9 ---------- Run | Yrd Mat Mat Sto Machines Disabled . | . . . . Max in Single Turn . | . . . . Machines Repaired . | . . . . Machines Dismantled . | . . . . Machines Sabotaged . | . . . . Overloaded Fab Kills . | . . . . Hacking | -11 -10 -9 -9 --------- Run | Yrd Mat Mat Sto Machines Accessed 6 | . 1 4 1 Terminals 5 | . 1 3 1 Fabricators . | . . . . Repair Stations . | . . . . Recycling Units 1 | . . 1 . Scanalyzers . | . . . . Garrison Access . | . . . . Total Hacks 9 | . 1 7 1 Successful 4 | . . 4 . Failed 5 | . 1 3 1 Catastrophic 1 | . . . 1 Database Lockouts . | . . . . Manual . | . . . . Terminals 8 | . 1 6 1 Fabricators . | . . . . Repair Stations . | . . . . Recycling Units 1 | . . 1 . Scanalyzers . | . . . . Garrison Access . | . . . . Terminal Hacks 3 | . . 3 . Alert Level 1 | . . 1 . Recall Investigation 1 | . . 1 . Zone Layout 1 | . . 1 . Fabricator Hacks . | . . . . Repair Station Hacks . | . . . . Recycling Unit Hacks 1 | . . 1 . Retrieve Components 1 | . . 1 . Scanalyzer . | . . . . Garrison Access Hacks . | . . . . Unauthorized Hacks . | . . . . Terminals . | . . . . Fabricators . | . . . . Repair Stations . | . . . . Recycling Units . | . . . . Scanalyzers . | . . . . Garrison Access . | . . . . Data Cores Recovered . | . . . . Used . | . . . . Hacking Detections 4 | . 1 2 1 Full Trace Events . | . . . . Feedback Events . | . . . . Feedback Blocked . | . . . . Robot Schematics Acquired . | . . . . Robots Built . | . . . . Authchips . | . . . . Time . | . . . . Total Robot Build Rating . | . . . . Part Schematics Acquired . | . . . . Parts Built . | . . . . Authchips . | . . . . Time . | . . . . Total Part Build Rating . | . . . . Parts Repaired . | . . . . Time . | . . . . Parts Recycled . | . . . . Recycled Matter . | . . . . Retrieved Matter . | . . . . Retrieved Components 3 | . . 3 . Parts Scanalyzed . | . . . . Part Schematics Acquired . | . . . . Parts Damaged . | . . . . Bothacking | -11 -10 -9 -9 ------------ Run | Yrd Mat Mat Sto Used RIF Installer . | . . . . Robots Hacked . | . . . . Non-combat . | . . . . Combat . | . . . . Robot Hacks Applied . | . . . . Relay Couplers Released . | . . . . Fabnet Peak Effective % . | . . . . Robots Rewired . | . . . . Allies Hacked . | . . . . Hacks Repelled . | . . . . Allies | -11 -10 -9 -9 -------- Run | Yrd Mat Mat Sto Total Allies . | . . . . Largest Group . | . . . . Highest-Rated Group . | . . . . Highest-Rated Ally . | . . . . Total Orders . | . . . . Ally Attacks . | . . . . Total Damage . | . . . . Kills . | . . . . Allies Corrupted . | . . . . Allies Melted . | . . . . Intel | -11 -10 -9 -9 ------- Run | Yrd Mat Mat Sto Robot Analysis Total . | . . . . Derelict Logs Recovered . | . . . . Drone Launches . | . . . . Drone Recoveries . | . . . . Exploration | -11 -10 -9 -9 ------------- Run | Yrd Mat Mat Sto Turns Passed 1270 | 49 302 364 555 Spaces Moved 772 | 60 249 303 160 Core 80 | 58 22 . . Treads . | . . . . Legs . | . . . . Wheels 458 | 2 227 130 99 Hover . | . . . . Flight 234 | . . 173 61 Fastest Speed 34 | 50 50 34 34 Average Speed 69 | 51 90 58 67 Slowest Speed 150 | 100 150 90 90 Overloaded Moves . | . . . . Propulsion Burnouts . | . . . . Robots Hopped . | . . . . Cave-ins Triggered . | . . . . Exploration Rate (%) 22 | 4 44 23 17 Regions Visited 3 Branch Regions 1 Pre-discovered Areas . | . . . . Known Exits Taken . | . . . . Unknown Exits Taken 3 | 1 1 1 . Scrap Searched . | . . . . Spaces Dug . | . . . . Terrain Destroyed . | . . . . Melee . | . . . . Projectile . | . . . . AOE . | . . . . Terrain Rammed . | . . . . Walls Destroyed . | . . . . Machines Disabled . | . . . . Actions | -11 -10 -9 -9 --------- Run | Yrd Mat Mat Sto Total 1427 | 80 299 482 566 Wait 535 | 2 8 161 364 Move 769 | 59 248 302 160 Hop . | . . . . Pick Up 27 | 6 7 6 8 Fast Attach . | . . . . Attach 30 | 7 13 6 4 Detach 14 | 6 4 2 2 Swap 6 | . 3 . 3 Drop 4 | . 2 . 2 Fire 42 | . 14 5 23 Melee . | . . . . Ram . | . . . . Kick . | . . . . Crush . | . . . . Escape Stasis . | . . . . Rewire . | . . . . Trap . | . . . . Miscellaneous . | . . . . Route ------- -11/Scrapyard -10/Materials -9/Materials -9/Storage History --------- Turn | Location | Event 28 | -11/Scrapyard | Discovered new exit (range 13) 50 | -11/Scrapyard | Entered Materials 172 | -10/Materials | Lost 3 parts (1p2n) 307 | -10/Materials | Build established: Mutant 334 | -10/Materials | Discovered new exit (range 15) 338 | -10/Materials | Core integrity fell below 50% 352 | -10/Materials | Entered another Materials area 352 | -9/Materials | Evolved 2 slots: Propulsion x1, Utility x1 682 | -9/Materials | Discovered new exit (range 18) 716 | -9/Materials | Entered Storage 1271 | -9/Storage | Self-destructed Last Messages --------------- 01235_ K-01 Serf collects debris. 01243_ Arm. Wheel destroyed. 01246_ Heat Sink melted. 01246_ Lgt. Armor Plating melted. 01246_ Beam Rifle melted. 01246_ Heat Sink melted. 01246_ Y-45 Defender destroyed. 01254_ K-01 Serf destroyed. 01254_ G-34 Mercenary destroyed. 01259_ Power failure, Lgt. Ion Engine shutdown. 01262_ Critical hit (Burn: +37). 01262_ Lgt. Ion Engine destroyed. 01267_ Overheating: Arm. Wheel damaged (-14). 01268_ Overheating: Particle Gun damaged (-13). 01268_ Arm. Wheel destroyed. 01269_ Particle Gun broken. 01269_ Overheating: Short circuit. 01271_ Y-45 Defender heat damages Lgt. Armor Plating. 01271_ Broken Particle Gun destroyed. Map ----- +----------------------------------------------------+ | | | | | | | | | | | | | | | | | | | ???????????????????#?????????????????????????????? | | ??????????????????# #########????????????????????? | | ??????????????????# ?????????????????????? | | ????????????#######""" """ #????????????????????? | | ###################"R """ #????????????????????? | | ############# #""" """ #????????????????????? | | % # #????????????????????? | | + / #??????????????? | | [[ # #### +??????????????? | | ############# # * #????????????????????? | | ######### ############????????????????????? | | ""##???## # """ """ #?????????????????????? | | ""##????# # """ """ #?????????????????????? | | """ T"##????# # """ """ #?????????????????????? | | """ ""#####?# %#=[ #?????????????????????? | | """ ""## ## %%Y= ##????????????????????? | | #### # #g% @ #????????????????????? | | #### + #=* ##????????????????????? | | #######?# # # #?????????????????????? | | #######?# T## ###########?????????????????????? | | ????????####?##+##???????????????????????????????? | | ?????????????????????????????????????????????????? | | ?????????????????????????????????????????????????? | | ?????????????????????????????????????????????????? | | ?????????????????????????????????????????????????? | | ?????????????????????????????????????????????????? | | ?????????????????????????????????????????????????? | | ?????????????????????????????????????????????????? | | ?????????????????????????????????????????????????? | | ?????????????????????????????????????????????????? | | ?????????????????????????????????????????????????? | | ?????????????????????????????????????????????????? | | ?????????????????????????????????????????????????? | | ?????????????????????????????????????????????????? | | ?????????????????????????????????????????????????? | | ?????????????????????????????????????????????????? | | ?????????????????????????????????????????????????? | | ?????????????????????????????????????????????????? | | ?????????????????????????????????????????????????? | | ?????????????????????????????????????????????????? | | ?????????????????????????????????????????????????? | +----------------------------------------------------+ Best States ------------- Heat Dissipation 28 Energy Generation 10 Energy Capacity 125 Matter Stores 300 Matter Capacity 300 Sight Range 16 Robot Scan Range 14 Terrain Scan Density 10 Evasion (%) 63 Targeting Accuracy 6 Item Schematics ----------------- None Robot Schematics ------------------ None Fabricated ------------ Nothing Alien Tech Used ----------------- None Achievements -------------- Crack Shot It's Just You Challenges ------------ None Game ------ Seed FissionRiotShovel Manual? 0 Play Time 00:23:52 Cumulative 3.5 hours Start 2024.08.20 @ 09:08:05 End 2024.08.20 @ 09:32:41 Sessions 1 Manual Loads 0 Difficulty Rogue Special Mode None Game No. 5 Rogue 5 Adventurer 0 Explorer 0 Win Type - Total 0 Types 0/0/0/0/0/0/0/0/0 Lore% 2 Gallery% 7 Achievement% 12 Wizard Run 0 Options --------- Layout 1 ASCII 0 Keyboard 0 Movement Mouse Keybinds 0 Fullscreen 1 Font 24/Tamsyn Map View 50x35 Zoom Use 0% Tactical HUD 1 Map Filters NONE Filters NONE Steam 1 RUN: 95fb4e45-048c-491b-b0e1-f549ebbdfeb2